bitfinex/quotes_SOLUSD_20251001
["timestamp","ask_amount","ask_price","bid_price","bid_amount"]
[1759308794279,0.72,215.74,215.66,47.52]
[1759308794448,23.15567704,215.93,215.66,47.52]
[1759308794765,16.22247971,215.75,215.67,47.58]
[1759308794966,4.6349942,215.75,215.67,47.58]
[1759308795348,5.42687735,215.72,215.65,36.14]
[1759308795553,5.42687735,215.72,215.66,47.52]
[1759308795752,5.42687735,215.73,215.67,47.5]
[1759308796180,4.63479252,215.76,215.67,47.5]
[1759308796478,5.42687735,215.75,215.68,47.42]
[1759308796868,5.42687735,215.74,215.68,47.42]
[1759308797074,4.63431827,215.79,215.68,47.83]
[1759308797275,10.78038667,215.82,215.68,52.05639542]
[1759308797572,5.42687735,215.81,215.69,0.41]
[1759308797785,0.72,215.86,215.69,0.41]
[1759308797985,0.72,215.86,215.71,20.8]
[1759308798177,0.72,215.86,215.72,0.41]
[1759308798178,5.42687735,215.84,215.72,0.41]
[1759308798353,0.72,215.86,215.72,0.41]
[1759308798553,5.42687735,215.84,215.73,47.28]
[1759308798779,5.42687735,215.82,215.72,0.41]
[1759308798953,5.42687735,215.79,215.68,25.8462865]
[1759308799150,16.21646665,215.83,215.69,47.24]
[1759308799151,5.42687735,215.77,215.69,47.24]
[1759308799559,5.42687735,215.77,215.65,56.94]
[1759308799560,5.42687735,215.75,215.65,56.94]
[1759308799779,16.21646665,215.83,215.7,47.22]
[1759308800086,5.42687735,215.78,215.7,47.22]
[1759308800256,16.21646665,215.83,215.7,47.22]
[1759308800457,5.42687735,215.81,215.7,47.22]
[1759308800657,4.63392029,215.8,215.7,51.85591882]
[1759308800971,13.59559401,215.88,215.72,0.28432314]
[1759308800972,0.67,215.88,215.72,0.28432314]
[1759308801171,0.67,215.88,215.74,20.8]
[1759308801480,0.67,215.88,215.75,0.41]
[1759308801668,5.42687735,215.9,215.76,20.8]
[1759308801862,5.42687735,215.89,215.76,20.8]
[1759308802065,5.42687735,215.9,215.76,20.8]
[1759308802257,5.42687735,215.89,215.76,20.8]
[1759308802458,5.42687735,215.87,215.76,20.8]
[1759308802683,16.21346179,215.87,215.77,46.96]
[1759308802987,16.21346179,215.87,215.77,51.59453072]
[1759308803281,5.42687735,215.9,215.8,20.8]
[1759308803487,5.42687735,215.88,215.8,20.8]
[1759308803668,5.42687735,215.87,215.74,0.69432314]
[1759308803981,5.42687735,215.85,215.74,21.21]
[1759308804156,4.63091599,215.94,215.75,47.21]
[1759308804358,5.42687735,215.91,215.78,20.8]
[1759308804575,5.42687735,215.88,215.78,20.8]
[1759308804759,4.63241765,215.87,215.79,20.8]
[1759308804974,4.63241765,215.87,215.8,46.86]
[1759308805363,6.09687735,215.9,215.8,46.86]
[1759308805765,16.88125674,215.9,215.8,46.86]
[1759308805966,5.42687735,215.89,215.8,46.86]
[1759308806299,16.21125674,215.9,215.8,46.86]
[1759308806797,21.63813409,215.9,215.81,46.68]
[1759308806995,16.21125674,215.9,215.82,46.64]
[1759308807175,21.63813409,215.9,215.82,46.64]
[1759308807374,16.21125674,215.9,215.82,46.64]
[1759308807935,21.63813409,215.9,215.83,46.58]
[1759308808081,21.63813409,215.9,215.79,21.21]
[1759308808272,21.6330929,215.9,215.82,5.42183616]
[1759308808473,16.21125674,215.9,215.82,5.42183616]
[1759308808684,16.21125674,215.9,215.83,46.48]
[1759308808904,16.21125674,215.9,215.79,20.8]
[1759308809076,16.21125674,215.9,215.84,46.44]
[1759308809481,39.37012658,215.9,215.85,46.4]
[1759308809683,5.30182182,215.9,215.85,46.4]
[1759308809882,4.63182182,215.9,215.85,51.82183616]
[1759308810080,16.21125674,215.9,215.85,51.82183616]
[1759308810278,5.42183616,215.86,215.7,36.55]
[1759308810498,0.67,215.89,215.75,5.42183616]
[1759308810669,0.67,215.89,215.82,5.42183616]
[1759308810992,20.1,216.01,215.87,5.42183616]
[1759308810993,4.63070155,215.95,215.87,5.42183616]
[1759308811193,4.63070155,215.95,215.79,13.59559401]
[1759308811194,4.63070155,215.95,215.85,0.41]
[1759308811494,0.67,215.97,215.92,5.42183616]
[1759308811716,5.52183616,216.01,215.93,46.22]
[1759308811717,5.29962962,216.0,215.93,46.22]
[1759308812004,4.62962962,216.0,215.94,46.22]
[1759308812177,16.20370369,216.0,215.94,46.22]
[1759308813003,16.20370369,216.0,215.95,46.08]
[1759308813180,16.87370369,216.0,215.93,5.42183616]
[1759308813377,16.87370369,216.0,215.94,46.04]
[1759308813596,16.87370369,216.0,215.92,5.42183616]
[1759308814106,5.42183616,215.94,215.91,36.14]
[1759308814406,39.35185183,216.0,215.93,46.02]
[1759308814604,5.42183616,215.97,215.93,46.02]
[1759308814791,5.42183616,215.95,215.93,46.02]
[1759308814992,5.42183616,215.95,215.91,36.14]
[1759308814993,5.30091599,215.94,215.91,36.14]
[1759308815219,6.09183616,215.93,215.82,36.14]
[1759308815386,39.36278594,215.94,215.82,36.14]
[1759308815387,5.42183616,215.86,215.82,36.14]
[1759308815584,5.42183616,215.84,215.82,36.14]
[1759308815784,0.67,215.83,215.82,36.14]
[1759308815995,5.42183616,215.83,215.82,36.14]
[1759308816202,0.67,215.87,215.82,82.0]
[1759308816408,73.75837995,215.94,215.82,82.0]
[1759308816409,5.42183616,215.9,215.82,82.0]
[1759308816593,5.42183616,215.91,215.83,5.42183616]
[1759308816781,39.36278594,215.94,215.82,82.0]
[1759308816782,5.42183616,215.89,215.82,82.0]
[1759308817107,4.63220307,215.88,215.82,82.0]
[1759308817279,16.21271075,215.88,215.83,45.76]
[1759308817475,16.21271075,215.88,215.82,36.14]
[1759308817476,0.67,215.87,215.84,45.78]
[1759308817705,5.42183616,215.86,215.84,45.78]
[1759308817930,5.42183616,215.86,215.82,36.14]
[1759308817931,0.67,215.85,215.82,36.14]
[1759308818209,5.42183616,215.83,215.75,36.14]
[1759308818381,5.42183616,215.81,215.75,36.14]
[1759308818705,5.42183616,215.79,215.75,36.14]
[1759308819076,4.6343498,215.78,215.75,36.14]
[1759308819282,4.6343498,215.78,215.76,45.68]
[1759308819481,5.42183616,215.82,215.76,45.68]
[1759308819898,16.21535861,215.85,215.76,45.68]
[1759308820098,0.67,215.84,215.75,36.14]
[1759308820298,0.67,215.83,215.76,45.58]
[1759308820628,5.42183616,215.77,215.75,36.14]
[1759308820799,39.37959303,215.85,215.77,45.68]
[1759308821114,4.6343498,215.78,215.77,45.68]
[1759308821291,16.8902243,215.78,215.77,45.62]
[1759308821615,16.8902243,215.78,215.75,36.14]
[1759308821792,0.67,215.77,215.75,36.14]
[1759308821990,4.63377998,215.81,215.75,36.14]
[1759308822421,4.63377998,215.81,215.76,5.42183616]
[1759308822946,16.21804391,215.81,215.77,45.62]
[1759308823109,11.58426393,215.81,215.77,45.62]
[1759308823312,4.63327618,215.83,215.77,45.62]
[1759308823815,4.63327618,215.83,215.77,50.25455722]
[1759308824024,23.15921228,215.9,215.8,5.42183616]
[1759308824319,15.07844749,215.88,215.8,3.49770403]
[1759308824616,4.63198851,215.89,215.82,3.49770403]
[1759308824791,4.63198851,215.89,215.83,45.48]
[1759308824992,4.63177396,215.9,215.83,48.97770403]
[1759308825193,4.63134494,215.92,215.83,45.48]
[1759308825408,15.07660264,215.91,215.83,45.48]
[1759308825688,4.63134494,215.92,215.85,3.49770403]
[1759308825895,4.63134494,215.92,215.84,45.34]
[1759308825896,4.63134494,215.92,215.87,3.49770403]
[1759308826116,16.20970729,215.92,215.87,3.49770403]
[1759308826295,16.20970729,215.92,215.88,45.28]
[1759308826599,16.20970729,215.92,215.84,0.41]
[1759308826600,16.87970729,215.92,215.89,45.26]
[1759308826791,4.6311153,215.94,215.89,48.75770403]
[1759308826991,4.62962962,216.0,215.93,3.49770403]
[1759308827209,3.49770403,215.94,215.77,3.62120082]
[1759308827417,0.67,215.93,215.81,20.8]
[1759308827597,16.20370369,216.0,215.81,20.8]
[1759308827598,3.49770403,215.88,215.81,20.8]
[1759308827807,3.49770403,215.87,215.79,3.49770403]
[1759308828001,0.67,215.92,215.81,3.49770403]
[1759308828201,3.49770403,215.87,215.78,24.29770403]
[1759308828405,13.59559401,215.97,215.72,0.41]
[1759308828406,3.49770403,215.82,215.72,0.41]
[1759308828611,3.49770403,215.82,215.76,45.08]
[1759308828922,3.49770403,215.83,215.76,45.08]
[1759308829426,16.21721805,215.82,215.76,45.08]
[1759308829721,16.21721805,215.82,215.77,45.04]
[1759308830109,16.21721805,215.82,215.73,20.8]
[1759308830110,16.21721805,215.82,215.75,39.63770403]
[1759308830303,4.63349087,215.82,215.76,44.98]
[1759308830711,16.21721805,215.82,215.76,44.98]
[1759308831125,19.71492208,215.82,215.75,36.14]
[1759308831323,3.49770403,215.88,215.75,36.14]
[1759308831324,3.49770403,215.8,215.76,44.92]
[1759308831632,3.49770403,215.8,215.77,44.86]
[1759308831928,39.37919851,215.85,215.77,44.86]
[1759308831929,4.63284688,215.85,215.77,44.86]
[1759308832120,4.63284688,215.85,215.78,3.49770403]
[1759308832424,3.49770403,215.81,215.79,44.8]
[1759308832804,3.49770403,215.82,215.79,44.8]
[1759308833322,23.16072242,215.89,215.79,44.8]
[1759308833323,8.13088716,215.84,215.79,44.8]
[1759308833521,16.21583694,215.84,215.8,44.74]
[1759308833716,4.63318313,215.84,215.81,44.74]
[1759308833927,4.63318313,215.84,215.82,44.7]
[1759308834136,4.63318313,215.84,215.83,44.7]
[1759308834426,4.63318313,215.84,215.75,40.77493463]
[1759308834427,16.21583694,215.84,215.75,36.14]
[1759308834636,13.59559401,215.83,215.74,0.41]
[1759308834824,16.90583694,215.84,215.72,0.41]
[1759308835002,16.90583694,215.84,215.76,3.49770403]
[1759308835202,20.40354097,215.84,215.72,0.41]
[1759308835430,16.90583694,215.84,215.76,3.49770403]
[1759308835598,20.40354097,215.84,215.77,44.76]
[1759308835797,16.90583694,215.84,215.77,44.76]
[1759308836002,5.32318313,215.84,215.77,48.25770403]
[1759308836225,4.63318313,215.84,215.77,48.25770403]
[1759308836404,4.63281014,215.86,215.77,44.76]
[1759308836603,4.18770403,215.89,215.77,44.76]
[1759308836604,4.63231104,215.88,215.77,44.76]
[1759308836901,3.82040773,216.09,215.77,44.76]
[1759308836902,4.62962962,216.0,215.8,20.8]
[1759308837104,4.62962962,216.0,215.76,0.14216157]
[1759308837105,3.49770403,215.91,215.76,0.14216157]
[1759308837302,20.8,215.9,215.77,45.12]
[1759308837504,3.49770403,215.86,215.78,45.38]
[1759308837711,0.69,215.89,215.75,3.90770403]
[1759308837712,0.69,215.87,215.75,3.90770403]
[1759308838018,3.49770403,215.83,215.76,45.4]
[1759308838227,0.69,215.82,215.7,36.14]
[1759308838526,3.49770403,215.81,215.71,45.38]
[1759308838736,3.49770403,215.81,215.71,45.79]
[1759308838915,3.49770403,215.81,215.7,36.14]
[1759308839106,3.49770403,215.81,215.71,48.79770403]
[1759308839107,0.69,215.81,215.71,48.79770403]
[1759308839306,4.63392029,215.8,215.71,45.3]
[1759308839504,20.8,215.85,215.72,0.55216157]
[1759308839505,16.21510654,215.85,215.72,0.55216157]
[1759308839707,14.28559401,215.84,215.7,36.14]
[1759308840032,0.69,215.83,215.73,45.4]
[1759308840209,34.39559401,215.82,215.73,45.4]
[1759308840407,13.59559401,215.8,215.7,36.14]
[1759308840611,20.8,215.77,215.7,36.14]
[1759308840805,14.28559401,215.76,215.63,36.14]
[1759308841001,13.59559401,215.72,215.63,36.14]
[1759308841209,3.49770403,215.64,215.63,36.14]
[1759308841408,0.69,215.68,215.63,36.14]
[1759308841609,19.72469646,215.69,215.64,45.72]
[1759308841911,16.22699243,215.69,215.64,45.72]
[1759308842106,3.49770403,215.71,215.64,49.21770403]
[1759308842302,0.69,215.76,215.68,3.49770403]
[1759308842528,3.49770403,215.74,215.64,46.13]
[1759308842730,16.91190157,215.76,215.64,46.13]
[1759308842731,3.49770403,215.72,215.64,46.13]
[1759308842958,3.49770403,215.74,215.65,3.49770403]
[1759308843157,3.49770403,215.74,215.64,46.13]
[1759308843437,16.91398367,215.73,215.65,45.62]
[1759308843643,3.49770403,215.7,215.65,45.62]
[1759308843822,0.69,215.7,215.65,45.62]
[1759308844134,0.69,215.69,215.63,36.14]
[1759308844309,0.69,215.69,215.64,45.66]
[1759308844507,3.49770403,215.66,215.64,45.66]
[1759308844843,0.69,215.69,215.64,45.66]
[1759308845140,16.22398367,215.73,215.64,45.66]
[1759308845347,3.49770403,215.69,215.64,45.66]
[1759308845519,0.69,215.68,215.63,36.14]
[1759308845832,0.69,215.68,215.46,20.2]
[1759308845833,3.49770403,215.64,215.52,3.90770403]
[1759308846032,13.59559401,215.66,215.52,0.41]
[1759308846350,3.49770403,215.61,215.52,0.41]
[1759308846557,0.69,215.6,215.46,0.61]
[1759308846833,0.28432314,215.69,215.46,0.61]
[1759308846834,0.69,215.62,215.47,46.45]
[1759308847036,0.69,215.62,215.48,0.41]
[1759308847220,4.63843406,215.59,215.52,3.49770403]
[1759308847423,0.69,215.62,215.51,0.41]
[1759308847621,4.63735856,215.64,215.56,3.49770403]
[1759308847821,4.63708067,215.66,215.57,46.16]
[1759308848333,3.49770403,215.65,215.57,46.16]
[1759308848634,0.69,215.72,215.58,0.41]
[1759308849035,0.69,215.72,215.62,3.49770403]
[1759308849249,3.49770403,215.69,215.62,3.49770403]
[1759308849459,3.49770403,215.69,215.63,46.04]
[1759308849626,3.49770403,215.69,215.58,0.41]
[1759308849834,4.63585369,215.71,215.61,3.49770403]
[1759308849835,3.49770403,215.68,215.61,3.49770403]
[1759308850034,0.69,215.7,215.58,5.04858364]
[1759308850234,3.49770403,215.69,215.59,45.98]
[1759308850444,3.49770403,215.68,215.61,3.49770403]
[1759308850638,0.69,215.7,215.6,45.98]
[1759308850956,3.49770403,215.69,215.62,3.49770403]
[1759308851254,13.59559401,215.78,215.63,56.96]
[1759308851565,20.0,215.86,215.64,45.96]
[1759308851566,0.69,215.77,215.64,45.96]
[1759308851767,3.49770403,215.71,215.63,36.16]
[1759308851931,13.59559401,215.77,215.65,46.08]
[1759308852264,20.0,215.84,215.65,46.08]
[1759308852265,3.49770403,215.71,215.65,46.08]
[1759308852453,3.49770403,215.72,215.65,46.08]
[1759308853001,3.49770403,215.71,215.64,3.49770403]
[1759308853260,16.22624014,215.7,215.65,46.0]
[1759308853635,4.63606861,215.7,215.65,46.0]
[1759308854228,8.13377264,215.7,215.63,36.16]
[1759308854427,3.49770403,215.68,215.63,36.16]
[1759308854628,3.49770403,215.67,215.64,45.88]
[1759308854937,16.91624014,215.7,215.64,45.88]
[1759308855129,4.63580029,215.72,215.64,45.88]
[1759308855529,4.63580029,215.72,215.66,3.49770403]
[1759308855781,13.59559401,215.78,215.65,0.28432314]
[1759308856063,0.69,215.77,215.66,45.92]
[1759308856267,13.59559401,215.74,215.66,45.92]
[1759308856437,0.69,215.73,215.66,45.92]
[1759308856635,3.49770403,215.67,215.63,36.16]
[1759308856843,3.49770403,215.72,215.67,45.9]
[1759308857042,3.49770403,215.75,215.67,45.9]
[1759308857241,4.63477938,215.76,215.69,3.49770403]
[1759308857439,3.49770403,215.73,215.66,20.8]
[1759308857760,3.49770403,215.73,215.66,24.29770403]
[1759308858069,16.22172784,215.76,215.67,46.23]
[1759308858243,16.22172784,215.76,215.7,3.49770403]
[1759308858560,4.63327618,215.83,215.75,3.49770403]
[1759308858882,16.21662209,215.83,215.76,49.25770403]
[1759308859172,3.49770403,215.86,215.78,3.49770403]
[1759308859343,4.6330075,215.85,215.79,45.74]
[1759308859763,16.21512471,215.85,215.75,0.41]
[1759308860066,16.21512471,215.85,215.8,45.68]
[1759308860241,16.92512471,215.85,215.77,3.49770403]
[1759308860436,3.49770403,215.84,215.75,0.41]
[1759308860657,3.49770403,215.8,215.71,0.41]
[1759308860859,0.71,215.83,215.72,45.64]
[1759308861050,3.49770403,215.8,215.72,49.13770403]
[1759308861244,16.21947262,215.79,215.72,45.64]
[1759308861450,3.49770403,215.78,215.73,45.56]
[1759308861668,16.21947262,215.79,215.7,20.8]
[1759308861978,16.21947262,215.79,215.74,45.56]
[1759308862277,4.63413503,215.79,215.74,45.56]
[1759308862437,16.21947262,215.79,215.7,0.41]
[1759308862637,16.21947262,215.79,215.71,45.46]
[1759308863071,16.21947262,215.79,215.7,21.35216157]
[1759308863375,16.21947262,215.79,215.72,48.95770403]
[1759308863670,16.21947262,215.79,215.65,11.59261953]
[1759308863671,20.8,215.83,215.73,0.41]
[1759308863872,0.1,215.93,215.82,3.49770403]
[1759308864084,4.73121645,215.93,215.83,36.16]
[1759308864249,16.30904259,215.93,215.83,36.16]
[1759308864455,16.30904259,215.93,215.81,21.21]
[1759308864456,39.46469488,215.93,215.81,20.8]
[1759308864687,39.46469488,215.93,215.82,45.54]
[1759308864688,0.71,215.92,215.82,45.54]
[1759308864849,3.49770403,215.88,215.83,45.52]
[1759308865048,0.71,215.88,215.84,45.52]
[1759308865354,0.71,215.88,215.85,45.5]
[1759308865355,4.63263226,215.86,215.85,45.5]
[1759308865664,4.63263226,215.86,215.68,0.41]
[1759308865665,13.59559401,215.85,215.68,0.41]
[1759308865974,13.59559401,215.85,215.73,36.16]
[1759308865975,3.49770403,215.79,215.73,36.16]
[1759308866178,3.49770403,215.82,215.73,36.16]
[1759308866690,0.71,215.81,215.74,45.46]
[1759308866849,3.49770403,215.81,215.74,45.46]
[1759308867055,14.30559401,215.84,215.74,45.46]
[1759308867380,14.30559401,215.84,215.75,45.48]
[1759308867672,14.30559401,215.84,215.73,36.16]
[1759308867673,13.87991715,215.82,215.73,36.16]
[1759308868017,40.09284759,215.83,215.76,45.46]
[1759308868175,16.21646665,215.83,215.76,45.46]
[1759308868480,16.21646665,215.83,215.76,48.95770403]
[1759308868646,16.21646665,215.83,215.76,45.46]
[1759308868841,19.71417068,215.83,215.76,45.46]
[1759308869068,16.21646665,215.83,215.74,3.49770403]
[1759308869271,4.63327618,215.83,215.78,3.49770403]
[1759308869574,0.71,215.86,215.77,49.01770403]
[1759308869575,4.63284688,215.85,215.77,49.01770403]
[1759308869758,16.21496409,215.85,215.79,3.49770403]
[1759308870261,4.63284688,215.85,215.79,3.49770403]
[1759308870872,3.49770403,215.88,215.8,21.21]
[1759308870873,4.63220971,215.88,215.8,21.21]
[1759308871444,4.63134494,215.92,215.85,3.49770403]
[1759308871667,16.20970729,215.92,215.86,45.32]
[1759308871878,4.73113148,215.93,215.87,3.49770403]
[1759308872080,0.1,215.93,215.91,3.49770403]
[1759308872283,0.1,215.93,215.89,20.8]
[1759308872781,0.1,215.93,215.87,20.8]
[1759308873086,16.30895985,215.93,215.88,81.4]
[1759308873287,16.30895985,215.93,215.81,20.8]
[1759308873461,16.21045805,215.91,215.83,3.49770403]
[1759308873661,0.1,215.93,215.84,81.36]
[1759308873886,4.6314077,215.92,215.86,3.49770403]
[1759308874260,4.6314077,215.92,215.87,45.2]
[1759308874582,4.6314077,215.92,215.88,45.2]
[1759308875169,0.1,215.93,215.87,20.8]
[1759308875374,3.49770403,215.9,215.88,45.12]
[1759308875569,4.63198851,215.89,215.88,45.12]
[1759308875760,16.21195979,215.89,215.88,45.14]
[1759308876169,19.70966382,215.89,215.88,45.14]
[1759308876387,16.21195979,215.89,215.88,45.14]
[1759308876962,16.21195979,215.89,215.84,36.14]
[1759308877361,4.63134494,215.92,215.86,3.49770403]
[1759308877764,4.63134494,215.92,215.85,45.39]
[1759308877958,16.20970729,215.92,215.86,44.92]
[1759308878275,4.63134494,215.92,215.87,44.92]
[1759308878477,4.63134494,215.92,215.87,48.41770403]
[1759308878779,0.1,215.93,215.87,48.41770403]
[1759308879091,0.1,215.93,215.91,3.49770403]
[1759308879464,0.1,215.93,215.92,0.41]
[1759308879677,0.1,215.93,215.92,44.8]
[1759308879863,0.1,215.93,215.88,0.41]
[1759308880082,0.1,215.93,215.92,24.29770403]
[1759308880466,0.1,215.93,215.92,3.49770403]
[1759308880791,0.1,215.93,215.92,44.76]
[1759308880792,5.44113045,215.93,215.92,44.76]
[1759308881469,17.01895659,215.93,215.92,44.72]
[1759308881898,20.51666062,215.93,215.92,44.72]
[1759308882068,20.51666062,215.93,215.82,0.41]
[1759308882396,3.49770403,215.91,215.82,3.49770403]
[1759308882560,3.49770403,215.91,215.83,44.66]
[1759308882767,3.49770403,215.91,215.84,44.6]
[1759308883190,20.51666062,215.93,215.85,48.05770403]
[1759308883391,4.73113045,215.93,215.85,44.56]
[1759308883589,0.1,215.93,215.86,4.63263226]
[1759308883890,0.1,215.93,215.9,3.49770403]
[1759308884095,0.1,215.93,215.92,3.49770403]
[1759308884307,0.1,215.93,215.92,5.41629541]
[1759308884593,0.1,215.93,215.92,49.93629541]
[1759308884968,0.1,215.93,215.92,44.52]
[1759308885493,0.1,215.93,215.76,20.0]
[1759308885494,4.73113045,215.93,215.76,20.0]
[1759308885700,4.73113045,215.93,215.82,0.14216157]
[1759308886011,5.41629541,215.89,215.83,44.42]
[1759308886176,5.41629541,215.89,215.84,44.42]
[1759308886378,0.71,215.88,215.84,44.42]
[1759308886579,0.71,215.88,215.8,5.41629541]
[1759308886806,0.71,215.88,215.81,44.36]
[1759308887000,16.21346179,215.87,215.78,20.8]
[1759308887197,16.21346179,215.87,215.79,49.77629541]
[1759308887620,4.63241765,215.87,215.81,5.41629541]
[1759308887922,4.63241765,215.87,215.82,5.41629541]
[1759308888397,4.63177396,215.9,215.82,5.41629541]
[1759308888596,4.63177396,215.9,215.82,20.8]
[1759308888811,21.62750429,215.9,215.82,20.8]
[1759308889019,0.1,215.93,215.84,20.8]
[1759308889236,0.1,215.93,215.92,5.41629541]
[1759308889533,0.1,215.93,215.92,49.85629541]
[1759308890035,0.1,215.93,215.92,50.14061855]
[1759308890200,0.1,215.93,215.92,6.11061855]
[1759308890602,0.1,215.93,215.92,50.45061855]
[1759308890899,0.1,215.93,215.92,6.11061855]
[1759308891117,0.1,215.93,215.92,55.02196349]
[1759308891525,0.1,215.93,215.92,68.6175575]
[1759308891918,1e-08,215.93,215.92,68.6175575]
[1759308892300,0.1,216.01,215.97,0.28432314]
[1759308892525,0.1,216.01,216.0,26.50061855]
[1759308893042,0.1,216.01,216.0,49.65629541]
[1759308893428,0.1,216.01,216.0,44.24]
[1759308893635,0.1,216.01,216.0,49.65629541]
[1759308893943,0.1,216.01,216.0,49.94061855]
[1759308894306,0.1,216.01,216.0,50.35061855]
[1759308894507,0.1,216.01,216.0,71.09061855]
[1759308894920,0.1,216.01,216.0,84.62621256]
[1759308895120,0.1,216.01,216.0,89.25584218]
[1759308896835,0.1,216.07,216.04,20.94216157]
[1759308897142,0.1,216.07,216.06,10.32896252]
[1759308897333,0.1,216.07,216.06,54.30896252]
[1759308897705,0.1,216.07,216.06,0.28432314]
[1759308897913,0.1,216.07,216.06,49.39629541]
[1759308898107,0.1,216.07,216.06,43.98]
[1759308898332,0.1,216.07,216.06,5.41629541]
[1759308898508,0.1,216.07,216.06,49.39629541]
[1759308899424,0.1,216.07,216.06,49.36303199]
[1759308899607,0.1,216.07,216.06,5.38303199]
[1759308899810,0.1,216.07,216.06,49.36303199]
[1759308900034,0.1,216.07,216.05,25.428364]
[1759308900435,0.1,216.07,216.06,49.64735513]
[1759308900824,0.1,216.07,215.99,20.0]
[1759308900825,0.8,216.07,215.99,5.60175212]
[1759308901032,5.32834397,216.06,215.95,3.67439445]
[1759308901213,5.32834397,216.06,215.96,44.3]
[1759308901410,0.7,216.05,215.97,44.3]
[1759308901647,0.7,216.05,215.97,49.68303199]
[1759308901827,0.7,216.05,215.97,44.3]
[1759308902156,6.08303199,216.05,215.97,44.3]
[1759308902447,5.38303199,216.03,215.92,0.69]
[1759308902618,16.19920391,216.06,215.96,5.38303199]
[1759308902824,0.7,216.02,215.97,44.22]
[1759308903050,16.19920391,216.06,215.97,44.22]
[1759308903051,0.7,216.01,215.97,44.22]
[1759308903220,0.7,216.0,215.91,36.1]
[1759308903716,5.32868275,216.05,215.97,5.38303199]
[1759308903911,0.7,216.04,215.94,20.8]
[1759308904223,0.1,216.07,216.01,5.38303199]
[1759308904438,4.72820052,216.07,216.02,44.22]
[1759308904637,0.7,216.06,216.02,44.22]
[1759308905141,0.1,216.07,216.02,44.22]
[1759308905443,0.8,216.07,216.04,5.38303199]
[1759308905612,0.8,216.07,216.02,44.22]
[1759308905613,0.7,216.06,216.05,44.1]
[1759308905822,0.7,216.06,215.92,4.63125075]
[1759308906136,0.1,216.07,216.03,5.38303199]
[1759308906451,0.1,216.07,216.04,44.06]
[1759308906641,4.7281786,216.07,216.05,44.04]
[1759308906821,0.1,216.07,216.06,44.04]
[1759308907618,5.42817277,216.07,216.01,5.38303199]
[1759308907942,5.42817277,216.07,216.0,5.38303199]
[1759308908150,16.9984972,216.07,216.01,43.96]
[1759308908324,16.9984972,216.07,215.96,4.63036586]
[1759308908325,5.42816814,216.07,216.02,43.96]
[1759308908528,0.7,216.06,216.02,43.96]
[1759308908833,4.72816814,216.07,216.03,43.96]
[1759308908834,6.08303199,216.05,216.03,43.96]
[1759308909025,0.7,216.04,215.98,5.38303199]
[1759308909246,5.32891902,216.04,215.99,43.96]
[1759308909449,0.7,216.03,215.99,43.96]
[1759308909635,0.7,216.03,215.99,5.38303199]
[1759308909836,0.7,216.03,216.0,43.96]
[1759308910163,4.72831212,216.07,216.0,49.34303199]
[1759308910455,0.7,216.06,216.01,43.96]
[1759308910633,0.1,216.07,216.01,49.34303199]
[1759308910838,0.1,216.07,216.01,43.96]
[1759308911341,4.72815719,216.07,216.01,48.58934511]
[1759308911518,4.72815719,216.07,216.02,5.38303199]
[1759308911724,0.7,216.06,216.02,5.38303199]
[1759308911938,4.72815719,216.07,216.03,43.96]
[1759308912124,4.72815719,216.07,216.03,49.34303199]
[1759308912125,0.1,216.07,216.03,49.34303199]
[1759308912332,0.8,216.07,216.03,43.96]
[1759308912650,4.72815599,216.07,216.03,49.34303199]
[1759308912857,4.72815599,216.07,215.97,0.69]